[Event "Titled Tuesday Blitz March 28 Early 2023"]
[White "polandchessplayer"]
[Black "Seletsky, Grigory"]
[BlackFideId "14112191"]
[WhiteElo "2695"]
[BlackElo "2490"]
[Result "1-0"]
[Round "04"]
[TimeControl "180+2"]
[Date "2023.03.28"]
[WhiteClock "0:01:10"]
[BlackClock "0:00:02"]

1. c4 {[%clk 0:03:00]}  c6 {[%clk 0:02:57]} 2. Nf3 {[%clk 0:02:59]}  d5 {[%clk 0:02:57]} 3. b3 {[%clk 0:02:59]}  Nf6 {[%clk 0:02:56]} 4. Bb2 {[%clk 0:02:59]}  Bf5 {[%clk 0:02:56]} 5. g3 {[%clk 0:02:59]}  e6 {[%clk 0:02:52]} 6. Bg2 {[%clk 0:02:59]}  h6 {[%clk 0:02:51]} 7. O-O {[%clk 0:03:00]}  Be7 {[%clk 0:02:52]} 8. d4 {[%clk 0:02:57]}  O-O {[%clk 0:02:50]} 9. Nbd2 {[%clk 0:02:57]}  Ne4 {[%clk 0:02:49]} 10. Nxe4 {[%clk 0:02:54]}  Bxe4 {[%clk 0:02:48]} 11. Rc1 {[%clk 0:02:54]}  Nd7 {[%clk 0:02:47]} 12. e3 {[%clk 0:02:53]}  a5 {[%clk 0:02:46]} 13. a4 {[%clk 0:02:42]}  Qb8 {[%clk 0:02:44]} 14. Qe2 {[%clk 0:02:41]}  Rc8 {[%clk 0:02:41]} 15. Nd2 {[%clk 0:02:40]}  Bxg2 {[%clk 0:02:40]} 16. Kxg2 {[%clk 0:02:41]}  Bb4 {[%clk 0:02:39]} 17. Bc3 {[%clk 0:02:36]}  Qd6 {[%clk 0:02:34]} 18. c5 {[%clk 0:02:31]}  Qc7 {[%clk 0:02:33]} 19. Bxb4 {[%clk 0:02:32]}  axb4 {[%clk 0:02:33]} 20. e4 {[%clk 0:02:32]}  b6 {[%clk 0:02:27]} 21. exd5 {[%clk 0:02:32]}  exd5 {[%clk 0:02:22]} 22. cxb6 {[%clk 0:02:30]}  Qxb6 {[%clk 0:02:21]} 23. Nf3 {[%clk 0:02:31]}  Nf6 {[%clk 0:02:12]} 24. Qd3 {[%clk 0:02:21]}  Ne4 {[%clk 0:02:09]} 25. Nd2 {[%clk 0:02:16]}  Nc3 {[%clk 0:02:05]} 26. Nb1 {[%clk 0:02:09]}  Ne4 {[%clk 0:01:55]} 27. f3 {[%clk 0:02:00]}  Ng5 {[%clk 0:01:48]} 28. Rfd1 {[%clk 0:01:49]}  Re8 {[%clk 0:01:43]} 29. Nd2 {[%clk 0:01:42]}  Re7 {[%clk 0:01:22]} 30. Nf1 {[%clk 0:01:39]}  Qb7 {[%clk 0:01:02]} 31. h4 {[%clk 0:01:38]}  Ne6 {[%clk 0:01:01]} 32. Rd2 {[%clk 0:01:32]}  Rd8 {[%clk 0:00:59]} 33. Ne3 {[%clk 0:01:23]}  g6 {[%clk 0:00:35]} 34. h5 {[%clk 0:01:22]}  Kg7 {[%clk 0:00:33]} 35. hxg6 {[%clk 0:01:19]}  fxg6 {[%clk 0:00:31]} 36. Ng4 {[%clk 0:01:18]}  h5 {[%clk 0:00:19]} 37. Ne5 {[%clk 0:01:18]}  Nf8 {[%clk 0:00:14]} 38. Rdc2 {[%clk 0:01:14]}  Rd6 {[%clk 0:00:14]} 39. Rxc6 {[%clk 0:01:13]}  Rxc6 {[%clk 0:00:08]} 40. Nxc6 {[%clk 0:01:14]}  Rc7 {[%clk 0:00:07]} 41. Qb5 {[%clk 0:01:14]}  Qxb5 {[%clk 0:00:02]} 42. axb5 {[%clk 0:01:15]}  Nd7 {[%clk 0:00:02]} 43. Re1 {[%clk 0:01:10]} 1-0


[Site "https://www.chess.com"]

[Event "Titled Tuesday Blitz March 28 Early 2023"]
[White "Hamitevici, Vladimir"]
[Black "Melaugh, Shane"]
[WhiteFideId "13902393"]
[BlackFideId "2509580"]
[WhiteElo "2401"]
[BlackElo "2034"]
[Result "1-0"]
[Round "04"]
[TimeControl "180+2"]
[Date "2023.03.28"]
[WhiteClock "0:00:05"]
[BlackClock "0:00:03"]

1. c4 {[%clk 0:03:00]}  e5 {[%clk 0:02:59]} 2. Nc3 {[%clk 0:02:56]}  Nc6 {[%clk 0:02:57]} 3. Nf3 {[%clk 0:02:56]}  f5 {[%clk 0:02:55]} 4. d4 {[%clk 0:02:48]}  e4 {[%clk 0:02:55]} 5. Ng5 {[%clk 0:02:47]}  Nf6 {[%clk 0:02:36]} 6. h4 {[%clk 0:02:38]}  Bb4 {[%clk 0:02:31]} 7. Bf4 {[%clk 0:02:35]}  d5 {[%clk 0:02:25]} 8. e3 {[%clk 0:02:32]}  h6 {[%clk 0:02:20]} 9. Nh3 {[%clk 0:02:29]}  Be6 {[%clk 0:02:18]} 10. c5 {[%clk 0:02:16]}  O-O {[%clk 0:02:16]} 11. Bb5 {[%clk 0:02:04]}  Ne7 {[%clk 0:02:05]} 12. Qb3 {[%clk 0:01:52]}  Ba5 {[%clk 0:01:54]} 13. Qa3 {[%clk 0:01:50]}  c6 {[%clk 0:01:51]} 14. Be2 {[%clk 0:01:50]}  Bc7 {[%clk 0:01:51]} 15. Bxc7 {[%clk 0:01:38]}  Qxc7 {[%clk 0:01:52]} 16. Nf4 {[%clk 0:01:38]}  Bf7 {[%clk 0:01:35]} 17. h5 {[%clk 0:01:38]}  b6 {[%clk 0:01:31]} 18. Rc1 {[%clk 0:01:19]}  b5 {[%clk 0:01:29]} 19. Qa6 {[%clk 0:01:13]}  Qc8 {[%clk 0:01:25]} 20. Qa5 {[%clk 0:01:04]}  Qd8 {[%clk 0:01:24]} 21. b4 {[%clk 0:00:56]}  Qxa5 {[%clk 0:01:22]} 22. bxa5 {[%clk 0:00:57]}  Rab8 {[%clk 0:00:58]} 23. a3 {[%clk 0:00:52]}  Ne8 {[%clk 0:00:41]} 24. Na2 {[%clk 0:00:50]}  Nc7 {[%clk 0:00:38]} 25. Nb4 {[%clk 0:00:50]}  Ne6 {[%clk 0:00:37]} 26. Kd2 {[%clk 0:00:31]}  Nxf4 {[%clk 0:00:37]} 27. exf4 {[%clk 0:00:32]}  Rfc8 {[%clk 0:00:29]} 28. Rb1 {[%clk 0:00:29]}  Kf8 {[%clk 0:00:29]} 29. Rh3 {[%clk 0:00:27]}  Ng8 {[%clk 0:00:30]} 30. Nc2 {[%clk 0:00:18]}  Nf6 {[%clk 0:00:29]} 31. Ne3 {[%clk 0:00:15]}  Be6 {[%clk 0:00:28]} 32. Rb4 {[%clk 0:00:14]}  Ke7 {[%clk 0:00:25]} 33. f3 {[%clk 0:00:14]}  exf3 {[%clk 0:00:21]} 34. Bxf3 {[%clk 0:00:15]}  Ne4+ {[%clk 0:00:20]} 35. Bxe4 {[%clk 0:00:15]}  dxe4 {[%clk 0:00:21]} 36. Rg3 {[%clk 0:00:14]}  Kf7 {[%clk 0:00:19]} 37. Kc3 {[%clk 0:00:14]}  Rd8 {[%clk 0:00:19]} 38. Rh3 {[%clk 0:00:13]}  Rd7 {[%clk 0:00:19]} 39. a4 {[%clk 0:00:11]}  a6 {[%clk 0:00:18]} 40. Rh1 {[%clk 0:00:11]}  Rbd8 {[%clk 0:00:18]} 41. axb5 {[%clk 0:00:11]}  axb5 {[%clk 0:00:18]} 42. a6 {[%clk 0:00:10]}  Ra8 {[%clk 0:00:18]} 43. Ra1 {[%clk 0:00:10]}  Rda7 {[%clk 0:00:19]} 44. d5 {[%clk 0:00:10]}  Bxd5 {[%clk 0:00:16]} 45. Nxd5 {[%clk 0:00:10]}  cxd5 {[%clk 0:00:16]} 46. Kd4 {[%clk 0:00:11]}  Rxa6 {[%clk 0:00:16]} 47. Rxa6 {[%clk 0:00:11]}  Rxa6 {[%clk 0:00:17]} 48. Rxb5 {[%clk 0:00:10]}  Re6 {[%clk 0:00:11]} 49. Rb7+ {[%clk 0:00:07]}  Kf6 {[%clk 0:00:10]} 50. Rb6 {[%clk 0:00:05]}  Ke7 {[%clk 0:00:03]} 51. Kxd5 {[%clk 0:00:05]} 1-0


[Site "https://www.chess.com"]

[Event "Titled Tuesday Blitz March 28 Early 2023"]
[White "Jessel, Stephen"]
[Black "Sliwicki, Damian"]
[WhiteFideId "628859"]
[BlackFideId "1127128"]
[WhiteElo "2268"]
[BlackElo "2030"]
[Result "0-1"]
[Round "04"]
[TimeControl "180+2"]
[Date "2023.03.28"]
[WhiteClock "0:02:54"]
[BlackClock "0:02:16"]

1. Nf3 {[%clk 0:03:00]}  g6 {[%clk 0:02:55]} 2. e4 {[%clk 0:03:00]}  c5 {[%clk 0:02:54]} 3. c4 {[%clk 0:03:00]}  Nc6 {[%clk 0:02:53]} 4. d4 {[%clk 0:03:00]}  cxd4 {[%clk 0:02:54]} 5. Nxd4 {[%clk 0:03:01]}  Nf6 {[%clk 0:02:54]} 6. Nc3 {[%clk 0:03:00]}  Nxd4 {[%clk 0:02:54]} 7. Qxd4 {[%clk 0:03:00]}  d6 {[%clk 0:02:55]} 8. Be2 {[%clk 0:03:01]}  Bg7 {[%clk 0:02:55]} 9. O-O {[%clk 0:03:01]}  O-O {[%clk 0:02:56]} 10. Qd3 {[%clk 0:03:02]}  Qa5 {[%clk 0:02:43]} 11. Be3 {[%clk 0:03:02]}  Ng4 {[%clk 0:02:37]} 12. Bd4 {[%clk 0:03:02]}  Bxd4 {[%clk 0:02:17]} 13. Qxd4 {[%clk 0:03:01]}  Qe5 {[%clk 0:02:17]} 14. Rad1 {[%clk 0:02:54]}  Qxh2# {[%clk 0:02:16]} 0-1


[Site "https://www.chess.com"]

[Event "Titled Tuesday Blitz March 28 Early 2023"]
[White "Subelj, Jan"]
[Black "Lopez Del Alamo, Antonio"]
[WhiteFideId "14618583"]
[BlackFideId "2227339"]
[WhiteElo "2474"]
[BlackElo "2175"]
[Result "1-0"]
[Round "04"]
[TimeControl "180+2"]
[Date "2023.03.28"]
[WhiteClock "0:01:02"]
[BlackClock "0:00:02"]

1. e4 {[%clk 0:03:00]}  c5 {[%clk 0:02:52]} 2. Na3 {[%clk 0:02:59]}  e6 {[%clk 0:02:50]} 3. c3 {[%clk 0:02:58]}  d5 {[%clk 0:02:47]} 4. e5 {[%clk 0:02:59]}  Nc6 {[%clk 0:02:45]} 5. Nf3 {[%clk 0:02:58]}  a6 {[%clk 0:02:36]} 6. Nc2 {[%clk 0:02:55]}  f6 {[%clk 0:02:27]} 7. d4 {[%clk 0:02:54]}  cxd4 {[%clk 0:02:25]} 8. Ncxd4 {[%clk 0:02:50]}  Qc7 {[%clk 0:01:45]} 9. Bf4 {[%clk 0:02:42]}  f5 {[%clk 0:01:44]} 10. h4 {[%clk 0:02:40]}  Nh6 {[%clk 0:01:38]} 11. Ng5 {[%clk 0:02:27]}  Nxd4 {[%clk 0:01:36]} 12. cxd4 {[%clk 0:02:03]}  Nf7 {[%clk 0:01:28]} 13. Nxf7 {[%clk 0:01:40]}  Kxf7 {[%clk 0:01:25]} 14. Bd3 {[%clk 0:01:38]}  Qb6 {[%clk 0:01:17]} 15. O-O {[%clk 0:01:37]}  Bd7 {[%clk 0:01:11]} 16. Rc1 {[%clk 0:01:34]}  Be7 {[%clk 0:01:10]} 17. g4 {[%clk 0:01:26]}  g6 {[%clk 0:00:58]} 18. gxf5 {[%clk 0:01:24]}  exf5 {[%clk 0:00:56]} 19. Rc7 {[%clk 0:01:22]}  Be6 {[%clk 0:00:52]} 20. Qc2 {[%clk 0:01:21]}  Rac8 {[%clk 0:00:51]} 21. Rc1 {[%clk 0:01:20]}  Qxd4 {[%clk 0:00:36]} 22. Bg5 {[%clk 0:01:17]}  Rhe8 {[%clk 0:00:29]} 23. Qe2 {[%clk 0:01:12]}  Qg4+ {[%clk 0:00:19]} 24. Qxg4 {[%clk 0:01:11]}  fxg4 {[%clk 0:00:17]} 25. Rxb7 {[%clk 0:01:08]}  Rxc1+ {[%clk 0:00:10]} 26. Bxc1 {[%clk 0:01:09]}  Kg8 {[%clk 0:00:02]} 27. h5 {[%clk 0:01:02]} 1-0


[Site "https://www.chess.com"]

[Event "Titled Tuesday Blitz March 28 Early 2023"]
[White "Shtompel, Yuriy"]
[Black "Tregubov, Pavel V."]
[WhiteFideId "14168278"]
[BlackFideId "4115341"]
[WhiteElo "1844"]
[BlackElo "2425"]
[Result "0-1"]
[Round "04"]
[TimeControl "180+2"]
[Date "2023.03.28"]
[WhiteClock "0:00:05"]
[BlackClock "0:00:33"]

1. e4 {[%clk 0:03:00]}  c5 {[%clk 0:02:58]} 2. Nf3 {[%clk 0:02:56]}  e6 {[%clk 0:02:58]} 3. d4 {[%clk 0:02:56]}  cxd4 {[%clk 0:02:58]} 4. Nxd4 {[%clk 0:02:57]}  Nc6 {[%clk 0:02:58]} 5. Nc3 {[%clk 0:02:57]}  Nf6 {[%clk 0:02:58]} 6. Ndb5 {[%clk 0:02:56]}  Bb4 {[%clk 0:02:56]} 7. Bf4 {[%clk 0:02:56]}  O-O {[%clk 0:02:49]} 8. Bc7 {[%clk 0:02:54]}  Qe7 {[%clk 0:02:48]} 9. Bd6 {[%clk 0:02:54]}  Bxd6 {[%clk 0:02:45]} 10. Qxd6 {[%clk 0:02:53]}  Qd8 {[%clk 0:02:46]} 11. Nc7 {[%clk 0:02:41]}  Rb8 {[%clk 0:02:45]} 12. e5 {[%clk 0:02:41]}  Ne8 {[%clk 0:02:32]} 13. Nxe8 {[%clk 0:02:40]}  Rxe8 {[%clk 0:02:32]} 14. Be2 {[%clk 0:02:38]}  b5 {[%clk 0:02:31]} 15. Ne4 {[%clk 0:02:34]}  Qa5+ {[%clk 0:02:25]} 16. Kf1 {[%clk 0:02:13]}  b4 {[%clk 0:02:22]} 17. Nc5 {[%clk 0:01:54]}  Rb6 {[%clk 0:02:08]} 18. g3 {[%clk 0:01:11]}  Nxe5 {[%clk 0:01:58]} 19. Qxe5 {[%clk 0:01:04]}  d6 {[%clk 0:01:59]} 20. Qe3 {[%clk 0:00:52]}  dxc5 {[%clk 0:01:57]} 21. Bf3 {[%clk 0:00:39]}  Rd6 {[%clk 0:01:45]} 22. Kg2 {[%clk 0:00:34]}  Red8 {[%clk 0:01:46]} 23. a3 {[%clk 0:00:28]}  a6 {[%clk 0:01:24]} 24. Rhd1 {[%clk 0:00:19]}  Rxd1 {[%clk 0:01:19]} 25. Rxd1 {[%clk 0:00:19]}  Rxd1 {[%clk 0:01:18]} 26. Bxd1 {[%clk 0:00:20]}  bxa3 {[%clk 0:01:13]} 27. bxa3 {[%clk 0:00:21]}  Bb7+ {[%clk 0:01:11]} 28. Bf3 {[%clk 0:00:21]}  Bxf3+ {[%clk 0:01:01]} 29. Qxf3 {[%clk 0:00:22]}  Qd8 {[%clk 0:00:56]} 30. c3 {[%clk 0:00:22]}  Qd5 {[%clk 0:00:54]} 31. c4 {[%clk 0:00:20]}  Qxf3+ {[%clk 0:00:53]} 32. Kxf3 {[%clk 0:00:21]}  f6 {[%clk 0:00:48]} 33. Ke4 {[%clk 0:00:18]}  Kf7 {[%clk 0:00:48]} 34. a4 {[%clk 0:00:18]}  a5 {[%clk 0:00:46]} 35. f4 {[%clk 0:00:14]}  Ke7 {[%clk 0:00:45]} 36. g4 {[%clk 0:00:14]}  Kd6 {[%clk 0:00:44]} 37. h4 {[%clk 0:00:12]}  g6 {[%clk 0:00:42]} 38. f5 {[%clk 0:00:09]}  exf5+ {[%clk 0:00:39]} 39. gxf5 {[%clk 0:00:09]}  g5 {[%clk 0:00:35]} 40. hxg5 {[%clk 0:00:08]}  fxg5 {[%clk 0:00:35]} 41. Kf3 {[%clk 0:00:07]}  Ke5 {[%clk 0:00:33]} 42. Kg4 {[%clk 0:00:08]}  h6 {[%clk 0:00:33]} 43. Kh5 {[%clk 0:00:05]}  Kxf5 {[%clk 0:00:33]} 0-1


[Site "https://www.chess.com"]

[Event "Titled Tuesday Blitz March 28 Early 2023"]
[White "Vadim_Galchenko"]
[Black "Martinez Ramirez, Lennis"]
[BlackFideId "3509079"]
[WhiteElo "2302"]
[BlackElo "2439"]
[Result "1/2-1/2"]
[Round "04"]
[TimeControl "180+2"]
[Date "2023.03.28"]
[WhiteClock "0:00:19"]
[BlackClock "0:01:03"]

1. e4 {[%clk 0:03:00]}  c6 {[%clk 0:02:57]} 2. c4 {[%clk 0:03:01]}  d5 {[%clk 0:02:58]} 3. exd5 {[%clk 0:03:01]}  cxd5 {[%clk 0:02:57]} 4. cxd5 {[%clk 0:03:02]}  Nf6 {[%clk 0:02:57]} 5. Bb5+ {[%clk 0:03:02]}  Nbd7 {[%clk 0:02:56]} 6. Nc3 {[%clk 0:03:02]}  a6 {[%clk 0:02:55]} 7. Be2 {[%clk 0:03:02]}  g6 {[%clk 0:02:53]} 8. Nf3 {[%clk 0:02:55]}  Bg7 {[%clk 0:02:53]} 9. O-O {[%clk 0:02:56]}  Nb6 {[%clk 0:02:52]} 10. d4 {[%clk 0:02:54]}  Nbxd5 {[%clk 0:02:51]} 11. Ne5 {[%clk 0:02:54]}  O-O {[%clk 0:02:50]} 12. Bf3 {[%clk 0:02:53]}  Be6 {[%clk 0:02:50]} 13. Na4 {[%clk 0:02:39]}  b6 {[%clk 0:02:45]} 14. Bg5 {[%clk 0:02:34]}  Rc8 {[%clk 0:02:44]} 15. Qd2 {[%clk 0:02:25]}  Qd6 {[%clk 0:02:43]} 16. a3 {[%clk 0:02:20]}  Nd7 {[%clk 0:02:41]} 17. Nxd7 {[%clk 0:02:10]}  Bxd7 {[%clk 0:02:41]} 18. Nc3 {[%clk 0:01:51]}  Bc6 {[%clk 0:02:35]} 19. Rfe1 {[%clk 0:01:46]}  e6 {[%clk 0:02:34]} 20. Ne4 {[%clk 0:01:43]}  Qd7 {[%clk 0:02:27]} 21. Rac1 {[%clk 0:01:40]}  f6 {[%clk 0:02:24]} 22. Bh6 {[%clk 0:01:38]}  Rfd8 {[%clk 0:02:21]} 23. b4 {[%clk 0:01:16]}  Bb7 {[%clk 0:02:16]} 24. Ng3 {[%clk 0:01:11]}  Rxc1 {[%clk 0:02:15]} 25. Rxc1 {[%clk 0:01:11]}  Rc8 {[%clk 0:02:13]} 26. Bxg7 {[%clk 0:01:12]}  Rxc1+ {[%clk 0:02:12]} 27. Qxc1 {[%clk 0:01:12]}  Kxg7 {[%clk 0:02:12]} 28. h3 {[%clk 0:01:13]}  Qc6 {[%clk 0:01:56]} 29. Ne2 {[%clk 0:00:57]}  Kf7 {[%clk 0:01:53]} 30. Qxc6 {[%clk 0:00:44]}  Bxc6 {[%clk 0:01:53]} 31. Nc3 {[%clk 0:00:45]}  Nxc3 {[%clk 0:01:49]} 32. Bxc6 {[%clk 0:00:45]}  Ne2+ {[%clk 0:01:49]} 33. Kf1 {[%clk 0:00:45]}  Nxd4 {[%clk 0:01:50]} 34. Bb7 {[%clk 0:00:39]}  Nc2 {[%clk 0:01:45]} 35. Bxa6 {[%clk 0:00:38]}  Nxa3 {[%clk 0:01:45]} 36. Bd3 {[%clk 0:00:38]}  Ke7 {[%clk 0:01:39]} 37. Ke2 {[%clk 0:00:37]}  Kd6 {[%clk 0:01:39]} 38. Kd2 {[%clk 0:00:37]}  b5 {[%clk 0:01:34]} 39. Kc3 {[%clk 0:00:35]}  Kd5 {[%clk 0:01:33]} 40. f3 {[%clk 0:00:21]}  h5 {[%clk 0:01:31]} 41. Bxg6 {[%clk 0:00:21]}  h4 {[%clk 0:01:31]} 42. Bd3 {[%clk 0:00:19]}  e5 {[%clk 0:01:28]} 43. Be4+ {[%clk 0:00:18]}  Kd6 {[%clk 0:01:27]} 44. Bd3 {[%clk 0:00:19]}  Kd5 {[%clk 0:01:27]} 45. Be4+ {[%clk 0:00:18]}  Kd6 {[%clk 0:01:19]} 46. Bd3 {[%clk 0:00:19]}  Kd5 {[%clk 0:01:03]} 1/2-1/2


[Site "https://www.chess.com"]

[Event "Titled Tuesday Blitz March 28 Early 2023"]
[White "Ruge, Edison"]
[Black "Cuenca Jimenez, Jose Fernando"]
[WhiteFideId "4401000"]
[BlackFideId "2255570"]
[WhiteElo "2175"]
[BlackElo "2429"]
[Result "0-1"]
[Round "04"]
[TimeControl "180+2"]
[Date "2023.03.28"]
[WhiteClock "0:01:09"]
[BlackClock "0:01:20"]

1. e4 {[%clk 0:03:00]}  d6 {[%clk 0:02:57]} 2. d3 {[%clk 0:02:59]}  g6 {[%clk 0:02:48]} 3. Nd2 {[%clk 0:02:58]}  Bg7 {[%clk 0:02:47]} 4. Ngf3 {[%clk 0:02:57]}  c5 {[%clk 0:02:48]} 5. g3 {[%clk 0:02:57]}  Nc6 {[%clk 0:02:48]} 6. Bg2 {[%clk 0:02:57]}  e5 {[%clk 0:02:49]} 7. h4 {[%clk 0:02:57]}  h6 {[%clk 0:02:42]} 8. c3 {[%clk 0:02:56]}  Nge7 {[%clk 0:02:42]} 9. h5 {[%clk 0:02:55]}  g5 {[%clk 0:02:42]} 10. Nh2 {[%clk 0:02:55]}  f5 {[%clk 0:02:36]} 11. exf5 {[%clk 0:02:51]}  Bxf5 {[%clk 0:02:37]} 12. Qe2 {[%clk 0:02:51]}  Qd7 {[%clk 0:02:35]} 13. O-O {[%clk 0:02:48]}  O-O {[%clk 0:02:30]} 14. Ne4 {[%clk 0:02:47]}  b6 {[%clk 0:02:25]} 15. Nd2 {[%clk 0:02:23]}  d5 {[%clk 0:02:22]} 16. Ndf3 {[%clk 0:02:11]}  Rae8 {[%clk 0:02:19]} 17. Nxg5 {[%clk 0:01:58]}  hxg5 {[%clk 0:02:18]} 18. Bxg5 {[%clk 0:01:58]}  Bh3 {[%clk 0:01:57]} 19. Rfe1 {[%clk 0:01:49]}  Bxg2 {[%clk 0:01:56]} 20. Kxg2 {[%clk 0:01:49]}  Qf5 {[%clk 0:01:54]} 21. Bd2 {[%clk 0:01:38]}  Kh8 {[%clk 0:01:47]} 22. g4 {[%clk 0:01:35]}  Qd7 {[%clk 0:01:38]} 23. h6 {[%clk 0:01:31]}  Bf6 {[%clk 0:01:32]} 24. g5 {[%clk 0:01:23]}  Rg8 {[%clk 0:01:27]} 25. f4 {[%clk 0:01:10]}  exf4 {[%clk 0:01:22]} 26. Qh5 {[%clk 0:01:09]}  Rxg5+ {[%clk 0:01:20]} 0-1


[Site "https://www.chess.com"]

[Event "Titled Tuesday Blitz March 28 Early 2023"]
[White "Amilal Munkhdalai"]
[Black "lolliNOPE"]
[WhiteFideId "4903250"]
[WhiteElo "2293"]
[BlackElo "2076"]
[Result "1-0"]
[Round "04"]
[TimeControl "180+2"]
[Date "2023.03.28"]
[WhiteClock "0:00:07"]
[BlackClock "0:00:13"]

1. e4 {[%clk 0:03:00]}  c6 {[%clk 0:02:57]} 2. Nc3 {[%clk 0:02:59]}  d5 {[%clk 0:02:58]} 3. Nf3 {[%clk 0:02:59]}  Bg4 {[%clk 0:02:56]} 4. h3 {[%clk 0:03:00]}  Bxf3 {[%clk 0:02:56]} 5. Qxf3 {[%clk 0:03:01]}  e6 {[%clk 0:02:57]} 6. d3 {[%clk 0:03:00]}  Nf6 {[%clk 0:02:56]} 7. a3 {[%clk 0:03:00]}  Be7 {[%clk 0:02:53]} 8. g4 {[%clk 0:03:00]}  O-O {[%clk 0:02:46]} 9. g5 {[%clk 0:02:59]}  Nfd7 {[%clk 0:02:46]} 10. h4 {[%clk 0:02:59]}  f5 {[%clk 0:02:28]} 11. Qh3 {[%clk 0:02:22]}  fxe4 {[%clk 0:02:14]} 12. dxe4 {[%clk 0:02:13]}  Bc5 {[%clk 0:02:06]} 13. f4 {[%clk 0:02:01]}  Qe7 {[%clk 0:01:50]} 14. Bd3 {[%clk 0:01:59]}  Bd4 {[%clk 0:01:43]} 15. Ne2 {[%clk 0:01:54]}  Bb6 {[%clk 0:01:42]} 16. e5 {[%clk 0:01:32]}  Nc5 {[%clk 0:01:37]} 17. Bd2 {[%clk 0:01:29]}  Nbd7 {[%clk 0:01:32]} 18. O-O-O {[%clk 0:01:23]}  Nxd3+ {[%clk 0:01:31]} 19. cxd3 {[%clk 0:01:19]}  Nc5 {[%clk 0:01:12]} 20. Bb4 {[%clk 0:01:16]}  a5 {[%clk 0:01:10]} 21. Bxc5 {[%clk 0:01:16]}  Bxc5 {[%clk 0:01:08]} 22. d4 {[%clk 0:01:15]}  Ba7 {[%clk 0:01:05]} 23. Rhf1 {[%clk 0:01:08]}  c5 {[%clk 0:01:02]} 24. f5 {[%clk 0:01:06]}  exf5 {[%clk 0:00:57]} 25. Rxf5 {[%clk 0:01:07]}  cxd4 {[%clk 0:00:58]} 26. Kb1 {[%clk 0:01:00]}  Rae8 {[%clk 0:00:50]} 27. Nxd4 {[%clk 0:00:39]}  Rxf5 {[%clk 0:00:43]} 28. Qxf5 {[%clk 0:00:13]}  Qxe5 {[%clk 0:00:42]} 29. Qxe5 {[%clk 0:00:13]}  Rxe5 {[%clk 0:00:41]} 30. Nb5 {[%clk 0:00:14]}  Bf2 {[%clk 0:00:33]} 31. Nd6 {[%clk 0:00:10]}  Bxh4 {[%clk 0:00:25]} 32. Rc1 {[%clk 0:00:10]}  Kf8 {[%clk 0:00:20]} 33. Rc8+ {[%clk 0:00:06]}  Ke7 {[%clk 0:00:20]} 34. Nxb7 {[%clk 0:00:07]}  Bxg5 {[%clk 0:00:19]} 35. Nxa5 {[%clk 0:00:08]}  h5 {[%clk 0:00:18]} 36. Nc6+ {[%clk 0:00:08]}  Kd6 {[%clk 0:00:18]} 37. Nxe5 {[%clk 0:00:08]}  Kxe5 {[%clk 0:00:19]} 38. a4 {[%clk 0:00:08]}  h4 {[%clk 0:00:19]} 39. Rh8 {[%clk 0:00:08]}  Bh6 {[%clk 0:00:19]} 40. a5 {[%clk 0:00:07]}  h3 {[%clk 0:00:19]} 41. a6 {[%clk 0:00:06]}  h2 {[%clk 0:00:19]} 42. Re8+ {[%clk 0:00:06]}  Kd6 {[%clk 0:00:17]} 43. Re1 {[%clk 0:00:05]}  Kc6 {[%clk 0:00:17]} 44. b4 {[%clk 0:00:06]}  Bf4 {[%clk 0:00:16]} 45. b5+ {[%clk 0:00:05]}  Kb6 {[%clk 0:00:16]} 46. Kc2 {[%clk 0:00:05]}  g5 {[%clk 0:00:16]} 47. Re6+ {[%clk 0:00:05]}  Ka7 {[%clk 0:00:16]} 48. Re7+ {[%clk 0:00:05]}  Kb6 {[%clk 0:00:16]} 49. Rb7+ {[%clk 0:00:05]}  Kc5 {[%clk 0:00:15]} 50. Rc7+ {[%clk 0:00:06]}  Kb6 {[%clk 0:00:16]} 51. Rb7+ {[%clk 0:00:04]}  Kc5 {[%clk 0:00:16]} 52. Rh7 {[%clk 0:00:04]}  Kb6 {[%clk 0:00:14]} 53. a7 {[%clk 0:00:05]}  h1=Q {[%clk 0:00:14]} 54. a8=N+ {[%clk 0:00:03]}  Kxb5 {[%clk 0:00:12]} 55. Rxh1 {[%clk 0:00:04]}  Kc4 {[%clk 0:00:12]} 56. Nb6+ {[%clk 0:00:02]}  Kc5 {[%clk 0:00:12]} 57. Nd7+ {[%clk 0:00:03]}  Kd4 {[%clk 0:00:12]} 58. Nf6 {[%clk 0:00:03]}  Ke3 {[%clk 0:00:12]} 59. Ng4+ {[%clk 0:00:03]}  Kf3 {[%clk 0:00:12]} 60. Nf6 {[%clk 0:00:04]}  Kg2 {[%clk 0:00:12]} 61. Rh7 {[%clk 0:00:03]}  d4 {[%clk 0:00:12]} 62. Kd3 {[%clk 0:00:03]}  Be3 {[%clk 0:00:13]} 63. Nd5 {[%clk 0:00:03]}  g4 {[%clk 0:00:13]} 64. Nxe3+ {[%clk 0:00:04]}  dxe3 {[%clk 0:00:13]} 65. Kxe3 {[%clk 0:00:05]}  g3 {[%clk 0:00:13]} 66. Rg7 {[%clk 0:00:05]}  Kh2 {[%clk 0:00:11]} 67. Kf3 {[%clk 0:00:05]}  g2 {[%clk 0:00:11]} 68. Rxg2+ {[%clk 0:00:06]}  Kh1 {[%clk 0:00:12]} 69. Rg8 {[%clk 0:00:06]}  Kh2 {[%clk 0:00:13]} 70. Rg7 {[%clk 0:00:06]}  Kh1 {[%clk 0:00:12]} 71. Kf2 {[%clk 0:00:06]}  Kh2 {[%clk 0:00:13]} 72. Rh7# {[%clk 0:00:07]} 1-0


[Site "https://www.chess.com"]

[Event "Titled Tuesday Blitz March 28 Early 2023"]
[White "Golubev, Mikhail"]
[Black "Samant Aditya S"]
[WhiteFideId "14100983"]
[BlackFideId "35080580"]
[WhiteElo "2374"]
[BlackElo "2362"]
[Result "0-1"]
[Round "04"]
[TimeControl "180+2"]
[Date "2023.03.28"]
[WhiteClock "0:00:01"]
[BlackClock "0:00:04"]

1. e4 {[%clk 0:03:00]}  c5 {[%clk 0:02:58]} 2. Nf3 {[%clk 0:03:00]}  d6 {[%clk 0:02:58]} 3. d4 {[%clk 0:03:00]}  cxd4 {[%clk 0:02:59]} 4. Nxd4 {[%clk 0:03:01]}  Nf6 {[%clk 0:03:00]} 5. Nc3 {[%clk 0:03:02]}  Nc6 {[%clk 0:03:01]} 6. Bc4 {[%clk 0:03:00]}  e6 {[%clk 0:02:56]} 7. Be3 {[%clk 0:02:59]}  a6 {[%clk 0:02:56]} 8. Bb3 {[%clk 0:02:58]}  Be7 {[%clk 0:02:55]} 9. Qe2 {[%clk 0:02:57]}  Na5 {[%clk 0:02:43]} 10. g4 {[%clk 0:02:42]}  Nxb3 {[%clk 0:01:57]} 11. axb3 {[%clk 0:02:41]}  O-O {[%clk 0:01:39]} 12. g5 {[%clk 0:02:26]}  Nd7 {[%clk 0:01:39]} 13. Rg1 {[%clk 0:02:26]}  Qc7 {[%clk 0:01:24]} 14. O-O-O {[%clk 0:01:59]}  b5 {[%clk 0:01:24]} 15. f4 {[%clk 0:01:59]}  b4 {[%clk 0:01:17]} 16. Nf5 {[%clk 0:01:52]}  Bd8 {[%clk 0:00:21]} 17. Qh5 {[%clk 0:00:15]}  bxc3 {[%clk 0:00:17]} 18. Rg3 {[%clk 0:00:15]}  exf5 {[%clk 0:00:10]} 19. Rh3 {[%clk 0:00:14]}  h6 {[%clk 0:00:10]} 20. gxh6 {[%clk 0:00:10]}  g6 {[%clk 0:00:05]} 21. h7+ {[%clk 0:00:07]}  Kh8 {[%clk 0:00:05]} 22. Qh6 {[%clk 0:00:05]}  cxb2+ {[%clk 0:00:03]} 23. Kb1 {[%clk 0:00:04]}  Bf6 {[%clk 0:00:04]} 24. e5 {[%clk 0:00:04]}  Bg7 {[%clk 0:00:04]} 25. Qh4 {[%clk 0:00:03]}  dxe5 {[%clk 0:00:05]} 26. Qe7 {[%clk 0:00:01]}  Bb7 {[%clk 0:00:05]} 27. Rxd7 {[%clk 0:00:01]}  Qc6 {[%clk 0:00:04]} 0-1


[Site "https://www.chess.com"]